[Event "NSV Open-ch Rapid 2019"]
[Site "Lueneburg"]
[Date "2019.08.03"]
[Round "1.18"]
[White "Rick, Niklas Corvin"]
[Black "Schulz, Daniel"]
[Result "0-1"]
[ECO "E60"]
[WhiteElo "1444"]
[BlackElo "2071"]
[Annotator "NA"]
[PlyCount "47"]
[EventDate "2019.08.03"]
[EventType "swiss"]
[EventCountry "GER"]
[SourceTitle "playchess.com"]
[Source "ChessBase"]
[SourceQuality "1"]
[TimeControl "600+5"]

1. d4 {[%emt 0:00:00]} g6 {[%emt 0:00:00]} 2. c4 {[%emt 0:00:08]} Nf6 {[%emt 0:00:00]} 3. Nf3 {[%emt 0:00:24]} Bg7 {[%emt 0:00:00]} 4. Bg5 {[%emt 0:00:18]} Ne4 {[%emt 0:00:29]} 5. e3 {[%emt 0:00:56]} c5 {[%emt 0:00:18]} 6. Bf4 {[%emt 0:01:07]} cxd4 {[%emt 0:01:24]} 7. exd4 {[%emt 0:00:33]} Nc6 {[%emt 0:00:31]} 8. Be2 {[%emt 0:00:48]} Qa5+ {[%emt 0:00:33]} 9. Bd2 {[%emt 0:01:52]} Nxd2 {[%emt 0:00:20]} 10. Qxd2 {[%emt 0:00:10]} Qxd2+ {[%emt 0:00:03]} 11. Nbxd2 {[%emt 0:00:02]} Nxd4 {[%emt 0:00:03]} 12. O-O {[%emt 0:01:07]} Nxe2+ {[%emt 0:00:03]} 13. Kh1 {[%emt 0:00:07]} d6 {[%emt 0:00:17]} 14. Rfe1 {[%emt 0:00:57]} Nd4 {[%emt 0:00:11]} 15. Rad1 {[%emt 0:00:54]} Bg4 {[%emt 0:00:37]} 16. Re3 {[%emt 0:00:43]} Bf6 {[%emt 0:00:34]} 17. Rde1 {[%emt 0:00:19]} Nxf3 {[%emt 0:00:13]} 18. Nxf3 {[%emt 0:00:03]} Bxf3 {[%emt 0:00:02]} 19. Rxf3 {[%emt 0:00:02]} O-O {[%emt 0:00:08]} 20. b3 {[%emt 0:00:18]} Be5 {[%emt 0:00:05]} 21. c5 {[%emt 0:00:19]} f5 {[%emt 0:00:04]} 22. h4 {[%emt 0:00:24]} Rac8 {[%emt 0:00:03]} 23. Rc1 {[%emt 0:00:02]} Rc6 {[%emt 0:00:10]} 24. b4 {[%emt 0:00:00]} 0-1

[Event "NSV Open-ch Rapid 2019"]
[Site "Lueneburg"]
[Date "2019.08.03"]
[Round "1.19"]
[White "Reimers, Achim"]
[Black "Kueck, Alexander"]
[Result "1-0"]
[ECO "D00"]
[WhiteElo "1975"]
[BlackElo "1374"]
[Annotator "NA RC"]
[PlyCount "105"]
[EventDate "2019.08.03"]
[EventType "swiss"]
[EventCountry "GER"]
[SourceTitle "playchess.com"]
[Source "ChessBase"]
[SourceQuality "1"]
[TimeControl "600+5"]

1. d4 {[%emt 0:00:00]} d5 {[%emt 0:00:00]} 2. c3 {[%emt 0:00:01]} Nc6 {[%emt 0:00:01]} 3. e3 {[%emt 0:00:08]} e5 {[%emt 0:00:04]} 4. dxe5 {[%emt 0:00:09]} Nxe5 {[%emt 0:00:03]} 5. Nd2 {[%emt 0:00:19]} Bf5 {[%emt 0:00:20]} 6. Ndf3 {[%emt 0:00:24]} Ng6 {[%emt 0:00:28]} 7. Bd3 {[%emt 0:00:19]} Bxd3 {[%emt 0:00:42]} 8. Qxd3 {[%emt 0:00:03]} Nf6 {[%emt 0:00:06]} 9. Ne2 {[%emt 0:00:12]} Be7 {[%emt 0:00:11]} 10. O-O {[%emt 0:00:05]} O-O {[%emt 0:00:02]} 11. b3 {[%emt 0:00:14]} c5 {[%emt 0:00:06]} 12. Bb2 {[%emt 0:00:06]} Rc8 {[%emt 0:00:30]} 13. c4 {[%emt 0:00:19]} dxc4 {[%emt 0:00:24]} 14. Qxc4 {[%emt 0:00:10]} Qd7 {[%emt 0:00:21]} 15. Rfd1 {[%emt 0:00:20]} Qc6 {[%emt 0:00:14]} 16. h3 {[%emt 0:00:21]} b5 {[%emt 0:00:04]} 17. Qc2 {[%emt 0:00:17]} c4 {[%emt 0:00:27]} 18. bxc4 {[%emt 0:00:29]} Qxc4 {[%emt 0:00:14]} 19. Qxc4 {[%emt 0:00:45]} Rxc4 {[%emt 0:00:11]} 20. Ned4 {[%emt 0:00:43]} a6 {[%emt 0:00:28]} 21. Nf5 {[%emt 0:00:24]} Rc6 {[%emt 0:01:15]} 22. Ne5 {[%emt 0:00:59]} Nxe5 {[%emt 0:00:44]} 23. Nxe7+ {[%emt 0:00:09]} Kh8 {[%emt 0:00:12]} 24. Bxe5 {[%emt 0:00:49]} Re6 {[%emt 0:00:08]} 25. Bxf6 {[%emt 0:00:03]} gxf6 {[%emt 0:00:05]} 26. Nf5 {[%emt 0:00:04]} Re5 {[%emt 0:00:20]} 27. Nd4 {[%emt 0:00:26]} Rg5 {[%emt 0:00:33]} 28. Rac1 {[%emt 0:00:09]} Rfg8 {[%emt 0:00:12]} 29. g3 {[%emt 0:00:04]} h5 {[%emt 0:00:06]} 30. h4 {[%emt 0:00:04]} Rd5 {[%emt 0:00:25]} 31. Rc6 {[%emt 0:00:05]} Kg7 {[%emt 0:00:12]} 32. Rdc1 {[%emt 0:00:15]} Ra8 {[%emt 0:00:19]} 33. R1c5 {[%emt 0:00:11]} Rxc5 {[%emt 0:00:15]} 34. Rxc5 {[%emt 0:00:02]} Kg6 {[%emt 0:00:04]} 35. Kg2 {[%emt 0:00:13]} Ra7 {[%emt 0:00:14]} 36. Kf3 {[%emt 0:00:01]} Kh6 {[%emt 0:00:26]} 37. Ke2 {[%emt 0:00:04]} Kg6 {[%emt 0:00:01]} 38. Ke1 {[%emt 0:00:14]} Kh6 {[%emt 0:00:06]} 39. Ne2 {[%emt 0:00:02]} Ra8 {[%emt 0:00:19]} 40. Nf4 {[%emt 0:00:02]} Rd8 {[%emt 0:00:31]} 41. Nxh5 {[%emt 0:00:09]} Rd6 {[%emt 0:00:06]} 42. Nf4 {[%emt 0:00:07]} Kg7 {[%emt 0:00:07]} 43. Ke2 {[%emt 0:00:02]} Kf8 {[%emt 0:00:09]} 44. Ke1 {[%emt 0:00:05]} Kg7 {[%emt 0:00:05]} 45. Ne2 {[%emt 0:00:01]} Kh6 {[%emt 0:00:03]} 46. Nd4 {[%emt 0:00:02]} Kg6 {[%emt 0:00:03]} 47. Rc6 {[%emt 0:00:02]} Rxc6 {[%emt 0:00:16]} 48. Nxc6 {[%emt 0:00:02]} Kg7 {[%emt 0:00:02]} 49. Kd2 {[%emt 0:00:01]} Kf8 {[%emt 0:00:04]} 50. Kc3 {[%emt 0:03:55]} Ke8 {[%emt 0:00:06]} 51. Kb4 {[%emt 0:00:00]} Kd7 {[%emt 0:00:02]} 52. Nb8+ {[%emt 0:00:00]} Kd6 {[%emt 0:00:05]} 53. Nxa6 {[%emt 0:00:00]} 1-0

[Event "NSV Open-ch Rapid 2019"]
[Site "Lueneburg"]
[Date "2019.08.03"]
[Round "1.20"]
[White "Schubert, Karl Heinz"]
[Black "Joppien, Arne"]
[Result "0-1"]
[ECO "B10"]
[WhiteElo "1335"]
[BlackElo "1940"]
[Annotator "NA"]
[PlyCount "94"]
[EventDate "2019.08.03"]
[EventType "swiss"]
[EventCountry "GER"]
[SourceTitle "playchess.com"]
[Source "ChessBase"]
[SourceQuality "1"]
[TimeControl "600+5"]

1. e4 {[%emt 0:00:00]} c6 {[%emt 0:00:00]} 2. b3 {[%emt 0:00:01]} e5 {[%emt 0:00:00]} 3. Bb2 {[%emt 0:00:01]} d6 {[%emt 0:00:13]} 4. Nf3 {[%emt 0:00:07]} Bg4 {[%emt 0:00:05]} 5. h3 {[%emt 0:00:02]} Bxf3 {[%emt 0:00:02]} 6. Qxf3 {[%emt 0:00:02]} Nf6 {[%emt 0:00:08]} 7. d3 {[%emt 0:00:26]} g6 {[%emt 0:00:16]} 8. Be2 {[%emt 0:00:05]} Bg7 {[%emt 0:00:02]} 9. Nc3 {[%emt 0:00:04]} O-O {[%emt 0:00:01]} 10. g4 {[%emt 0:00:09]} Nbd7 {[%emt 0:00:50]} 11. h4 {[%emt 0:00:02]} b5 {[%emt 0:00:48]} 12. g5 {[%emt 0:00:15]} Nh5 {[%emt 0:00:13]} 13. Qg2 {[%emt 0:00:19]} Nf4 {[%emt 0:00:03]} 14. Qg4 {[%emt 0:00:15]} b4 {[%emt 0:00:16]} 15. Nd1 {[%emt 0:00:02]} d5 {[%emt 0:00:14]} 16. Bc1 {[%emt 0:00:15]} dxe4 {[%emt 0:01:11]} 17. Bxf4 {[%emt 0:00:11]} exf4 {[%emt 0:00:22]} 18. Rb1 {[%emt 0:00:15]} exd3 {[%emt 0:00:02]} 19. Bxd3 {[%emt 0:00:06]} Re8+ {[%emt 0:00:12]} 20. Kf1 {[%emt 0:00:11]} Ne5 {[%emt 0:00:21]} 21. Qe2 {[%emt 0:00:20]} Nxd3 {[%emt 0:02:05]} 22. Qxd3 {[%emt 0:00:03]} Qxd3+ {[%emt 0:00:02]} 23. cxd3 {[%emt 0:00:02]} Rad8 {[%emt 0:00:04]} 24. Nb2 {[%emt 0:00:09]} Bxb2 {[%emt 0:00:06]} 25. Rxb2 {[%emt 0:00:02]} Rxd3 {[%emt 0:00:01]} 26. h5 {[%emt 0:00:07]} Rd1+ {[%emt 0:00:53]} 27. Kg2 {[%emt 0:00:03]} Rxh1 {[%emt 0:00:03]} 28. Kxh1 {[%emt 0:00:03]} gxh5 {[%emt 0:00:02]} 29. Rc2 {[%emt 0:00:02]} Re6 {[%emt 0:00:07]} 30. Rc4 {[%emt 0:00:04]} Re2 {[%emt 0:00:37]} 31. Kg2 {[%emt 0:00:01]} Rxa2 {[%emt 0:00:02]} 32. Rxc6 {[%emt 0:00:11]} Rb2 {[%emt 0:00:24]} 33. Rh6 {[%emt 0:00:02]} Rxb3 {[%emt 0:00:04]} 34. Rxh5 {[%emt 0:00:02]} a5 {[%emt 0:00:02]} 35. Rh4 {[%emt 0:00:06]} a4 {[%emt 0:00:05]} 36. Rxf4 {[%emt 0:00:03]} a3 {[%emt 0:00:01]} 37. Rd4 {[%emt 0:00:09]} a2 {[%emt 0:00:03]} 38. Rd1 {[%emt 0:00:01]} Rb1 {[%emt 0:00:01]} 39. Rd8+ {[%emt 0:00:06]} Kg7 {[%emt 0:00:01]} 40. Kf3 {[%emt 0:00:03]} a1=Q {[%emt 0:00:05]} 41. Kg4 {[%emt 0:00:09]} Rg1+ {[%emt 0:00:08]} 42. Kf4 {[%emt 0:00:06]} Qc1+ {[%emt 0:00:05]} 43. Kf3 {[%emt 0:00:07]} Qxg5 {[%emt 0:00:07]} 44. Rd4 {[%emt 0:00:09]} b3 {[%emt 0:00:11]} 45. Rb4 {[%emt 0:00:09]} b2 {[%emt 0:00:28]} 46. Rxb2 {[%emt 0:00:04]} Qd5+ {[%emt 0:00:04]} 47. Kf4 {[%emt 0:00:15]} Qd4+ {[%emt 0:00:05]} 0-1

[Event "NSV Open-ch Rapid 2019"]
[Site "Lueneburg"]
[Date "2019.08.03"]
[Round "1.22"]
[White "Krueger, Dietrich"]
[Black "von Estorff, Jacob"]
[Result "0-1"]
[ECO "D00"]
[WhiteElo "1243"]
[BlackElo "2055"]
[Annotator "NA"]
[PlyCount "44"]
[EventDate "2019.08.03"]
[EventType "swiss"]
[EventCountry "GER"]
[SourceTitle "playchess.com"]
[Source "ChessBase"]
[SourceQuality "1"]
[TimeControl "600+5"]

1. d4 {[%emt 0:00:00]} Nf6 {[%emt 0:00:00]} 2. Nc3 {[%emt 0:00:03]} d5 {[%emt 0:00:00]} 3. Bf4 {[%emt 0:00:05]} e6 {[%emt 0:00:04]} 4. e3 {[%emt 0:00:07]} Bd6 {[%emt 0:00:03]} 5. Qf3 {[%emt 0:00:23]} O-O {[%emt 0:00:05]} 6. Bd3 {[%emt 0:00:21]} c5 {[%emt 0:00:07]} 7. Bg5 {[%emt 0:00:14]} Nbd7 {[%emt 0:00:06]} 8. Nge2 {[%emt 0:00:26]} c4 {[%emt 0:00:07]} 9. e4 {[%emt 0:01:02]} cxd3 {[%emt 0:00:03]} 10. cxd3 {[%emt 0:00:12]} dxe4 {[%emt 0:00:07]} 11. dxe4 {[%emt 0:00:13]} Be7 {[%emt 0:00:02]} 12. h4 {[%emt 0:00:22]} b5 {[%emt 0:00:12]} 13. O-O-O {[%emt 0:00:29]} b4 {[%emt 0:00:02]} 14. e5 {[%emt 0:00:26]} Nd5 {[%emt 0:00:07]} 15. Ne4 {[%emt 0:00:26]} Ba6 {[%emt 0:00:17]} 16. Nf4 {[%emt 0:00:28]} Nxf4 {[%emt 0:00:03]} 17. Qxf4 {[%emt 0:00:15]} b3 {[%emt 0:00:14]} 18. a3 {[%emt 0:00:08]} Nb6 {[%emt 0:00:15]} 19. h5 {[%emt 0:00:51]} Qc7+ {[%emt 0:00:04]} 20. Kb1 {[%emt 0:00:16]} Qc2+ {[%emt 0:00:05]} 21. Ka1 {[%emt 0:00:13]} Bxa3 {[%emt 0:00:04]} 22. Rd2 {[%emt 0:00:51]} Bxb2# {[%emt 0:00:25]} 0-1

[Event "NSV Open-ch Rapid 2019"]
[Site "Lueneburg"]
[Date "2019.08.03"]
[Round "1.25"]
[White "Doederlein, Etienne"]
[Black "Guo, Philipp Ziming"]
[Result "1/2-1/2"]
[ECO "D05"]
[WhiteElo "1868"]
[BlackElo "1728"]
[Annotator "NA"]
[PlyCount "85"]
[EventDate "2019.08.03"]
[EventType "swiss"]
[EventCountry "GER"]
[SourceTitle "playchess.com"]
[Source "ChessBase"]
[SourceQuality "1"]
[TimeControl "600+5"]

1. d4 {[%emt 0:00:00]} Nf6 {[%emt 0:00:00]} 2. Nf3 {[%emt 0:00:00]} e6 {[%emt 0:00:00]} 3. e3 {[%emt 0:00:00]} d5 {[%emt 0:00:02]} 4. Bd3 {[%emt 0:00:00]} Be7 {[%emt 0:00:07]} 5. c3 {[%emt 0:00:02]} b6 {[%emt 0:00:04]} 6. Nbd2 {[%emt 0:00:01]} Bb7 {[%emt 0:00:01]} 7. O-O {[%emt 0:00:02]} Nbd7 {[%emt 0:00:02]} 8. Ne5 {[%emt 0:00:07]} Nxe5 {[%emt 0:00:06]} 9. dxe5 {[%emt 0:00:02]} Nd7 {[%emt 0:00:03]} 10. f4 {[%emt 0:00:01]} c5 {[%emt 0:00:04]} 11. Qf3 {[%emt 0:00:33]} Qc7 {[%emt 0:00:09]} 12. Qh3 {[%emt 0:00:17]} h5 {[%emt 0:00:16]} 13. c4 {[%emt 0:00:45]} O-O-O {[%emt 0:00:19]} 14. cxd5 {[%emt 0:00:17]} exd5 {[%emt 0:00:05]} 15. Bb5 {[%emt 0:00:59]} Kb8 {[%emt 0:00:30]} 16. Nf3 {[%emt 0:00:43]} a6 {[%emt 0:00:31]} 17. Be2 {[%emt 0:00:37]} Rdg8 {[%emt 0:01:23]} 18. Nh4 {[%emt 0:01:55]} Bxh4 {[%emt 0:01:12]} 19. Qxh4 {[%emt 0:00:01]} c4 {[%emt 0:01:04]} 20. Qe7 {[%emt 0:00:49]} Nc5 {[%emt 0:00:32]} 21. Qxc7+ {[%emt 0:00:10]} Kxc7 {[%emt 0:00:00]} 22. Bd2 {[%emt 0:00:10]} Ne4 {[%emt 0:00:03]} 23. Rfd1 {[%emt 0:00:32]} f6 {[%emt 0:01:10]} 24. exf6 {[%emt 0:00:17]} gxf6 {[%emt 0:00:06]} 25. Bf3 {[%emt 0:00:14]} f5 {[%emt 0:00:13]} 26. Bxe4 {[%emt 0:00:09]} fxe4 {[%emt 0:00:01]} 27. Bc3 {[%emt 0:00:01]} Rh6 {[%emt 0:00:17]} 28. Be5+ {[%emt 0:00:27]} Kd7 {[%emt 0:00:21]} 29. Rac1 {[%emt 0:00:02]} Ke6 {[%emt 0:00:09]} 30. b3 {[%emt 0:00:06]} cxb3 {[%emt 0:00:54]} 31. axb3 {[%emt 0:00:07]} Rh7 {[%emt 0:00:03]} 32. Rd2 {[%emt 0:00:29]} Rc8 {[%emt 0:00:20]} 33. Rxc8 {[%emt 0:00:10]} Bxc8 {[%emt 0:00:00]} 34. Rc2 {[%emt 0:00:00]} Bb7 {[%emt 0:00:14]} 35. Kf2 {[%emt 0:00:13]} Rd7 {[%emt 0:00:08]} 36. Rc7 {[%emt 0:00:04]} Rxc7 {[%emt 0:00:14]} 37. Bxc7 {[%emt 0:00:02]} b5 {[%emt 0:00:00]} 38. Ba5 {[%emt 0:00:14]} Kf5 {[%emt 0:00:04]} 39. Bc3 {[%emt 0:00:47]} Bc6 {[%emt 0:00:16]} 40. b4 {[%emt 0:00:11]} Be8 {[%emt 0:00:02]} 41. Kg3 {[%emt 0:00:16]} Bg6 {[%emt 0:00:03]} 42. Kh4 {[%emt 0:00:14]} Be8 {[%emt 0:00:02]} 43. Kg3 {[%emt 0:00:02]} 1/2-1/2

[Event "NSV Open-ch Rapid 2019"]
[Site "Lueneburg"]
[Date "2019.08.03"]
[Round "2.1"]
[White "Marzik, Hans"]
[Black "Vorobiov, Evgeny E."]
[Result "0-1"]
[ECO "D21"]
[WhiteElo "2105"]
[BlackElo "2578"]
[Annotator "RC"]
[PlyCount "42"]
[EventDate "2019.08.03"]
[EventType "swiss"]
[EventCountry "GER"]
[SourceTitle "playchess.com"]
[Source "ChessBase"]
[SourceQuality "1"]
[TimeControl "600+5"]

1. d4 {[%emt 0:00:00]} d5 {[%emt 0:00:01]} 2. c4 {[%emt 0:00:01]} dxc4 {[%emt 0:00:02]} 3. Nf3 {[%emt 0:00:01]} a6 {[%emt 0:00:01]} 4. e4 {[%emt 0:01:14]} b5 {[%emt 0:00:03]} 5. a4 {[%emt 0:00:03]} Bb7 {[%emt 0:00:12]} 6. Qc2 {[%emt 0:01:07]} e6 {[%emt 0:00:43]} 7. Be2 {[%emt 0:00:26]} Nf6 {[%emt 0:00:25]} 8. Nbd2 {[%emt 0:00:05]} Bb4 {[%emt 0:00:40]} 9. e5 {[%emt 0:00:35]} Nd5 {[%emt 0:00:32]} 10. O-O {[%emt 0:00:18]} Nf4 {[%emt 0:00:13]} 11. Ne4 {[%emt 0:00:47]} Nxe2+ {[%emt 0:00:18]} 12. Qxe2 {[%emt 0:00:01]} Qd5 {[%emt 0:00:24]} 13. Ng3 {[%emt 0:00:45]} Nc6 {[%emt 0:00:25]} 14. axb5 {[%emt 0:00:28]} Nxd4 {[%emt 0:00:22]} 15. Qe3 {[%emt 0:00:10]} Nxf3+ {[%emt 0:00:38]} 16. gxf3 {[%emt 0:00:02]} axb5 {[%emt 0:00:25]} 17. Rxa8+ {[%emt 0:00:18]} Bxa8 {[%emt 0:00:02]} 18. Kg2 {[%emt 0:01:07]} h5 {[%emt 0:00:46]} 19. h4 {[%emt 0:00:15]} Be7 {[%emt 0:00:41]} 20. Bd2 {[%emt 0:01:08]} g5 {[%emt 0:00:24]} 21. Ne4 {[%emt 0:01:15]} g4 {[%emt 0:00:21]} 0-1

[Event "NSV Open-ch Rapid 2019"]
[Site "Lueneburg"]
[Date "2019.08.03"]
[Round "2.2"]
[White "Schneider, Ilja"]
[Black "Chennaoui, Yasin"]
[Result "1-0"]
[ECO "B07"]
[WhiteElo "2494"]
[BlackElo "2092"]
[Annotator "RC"]
[PlyCount "115"]
[EventDate "2019.08.03"]
[EventType "swiss"]
[EventCountry "GER"]
[SourceTitle "playchess.com"]
[Source "ChessBase"]
[SourceQuality "1"]
[TimeControl "600+5"]

1. d4 {[%emt 0:00:00]} d6 {[%emt 0:00:00]} 2. e4 {[%emt 0:00:05]} Nf6 {[%emt 0:00:05]} 3. Nc3 {[%emt 0:00:05]} e5 {[%emt 0:00:05]} 4. dxe5 dxe5 {[%emt 0:00:05]} 5. Qxd8+ {[%emt 0:00:10]} Kxd8 {[%emt 0:00:05]} 6. Bg5 {[%emt 0:00:05]} c6 {[%emt 0:00:05]} 7. O-O-O+ {[%emt 0:00:08]} Nbd7 {[%emt 0:00:05]} 8. g3 {[%emt 0:00:10]} h6 {[%emt 0:00:21]} 9. Bxf6+ {[%emt 0:00:05]} gxf6 {[%emt 0:00:05]} 10. Bh3 {[%emt 0:00:05]} Bc5 {[%emt 0:00:11]} 11. f3 {[%emt 0:00:10]} Be3+ {[%emt 0:00:33]} 12. Kb1 {[%emt 0:00:05]} Ke7 {[%emt 0:00:05]} 13. Nge2 {[%emt 0:00:22]} h5 {[%emt 0:00:15]} 14. Bf5 {[%emt 0:01:26]} Nc5 {[%emt 0:00:36]} 15. h4 {[%emt 0:00:46]} Ne6 {[%emt 0:01:30]} 16. g4 {[%emt 0:00:25]} Nd4 {[%emt 0:01:12]} 17. Nxd4 {[%emt 0:00:51]} exd4 {[%emt 0:00:05]} 18. Ne2 {[%emt 0:00:05]} Bxf5 {[%emt 0:00:05]} 19. exf5 {[%emt 0:01:01]} hxg4 {[%emt 0:00:05]} 20. Nxd4 {[%emt 0:00:22]} Bxd4 {[%emt 0:00:07]} 21. Rxd4 {[%emt 0:00:05]} gxf3 {[%emt 0:00:05]} 22. Re1+ {[%emt 0:00:13]} Kf8 {[%emt 0:00:05]} 23. Rf1 {[%emt 0:00:07]} Re8 {[%emt 0:00:05]} 24. Kc1 {[%emt 0:00:28]} Re3 {[%emt 0:01:00]} 25. Kd2 {[%emt 0:00:05]} Re2+ {[%emt 0:00:05]} 26. Kd3 {[%emt 0:00:05]} Rh2 {[%emt 0:00:05]} 27. Rxf3 {[%emt 0:00:49]} R8xh4 {[%emt 0:00:05]} 28. Rd7 {[%emt 0:00:08]} Rg2 {[%emt 0:01:26]} 29. Rxb7 {[%emt 0:01:11]} Rhh2 {[%emt 0:00:05]} 30. Rb8+ {[%emt 0:00:38]} Kg7 {[%emt 0:00:05]} 31. c3 {[%emt 0:00:05]} Rd2+ {[%emt 0:00:05]} 32. Kc4 {[%emt 0:00:05]} Rxb2 {[%emt 0:00:10]} 33. Rg3+ {[%emt 0:00:05]} Kh7 {[%emt 0:00:05]} 34. Rbg8 {[%emt 0:00:05]} Rxa2 {[%emt 0:00:15]} 35. R8g7+ {[%emt 0:00:13]} Kh8 {[%emt 0:00:26]} 36. Rg8+ {[%emt 0:00:08]} Kh7 {[%emt 0:00:05]} 37. R3g7+ {[%emt 0:00:09]} Kh6 {[%emt 0:00:05]} 38. Rxf7 {[%emt 0:00:05]} Rhg2 {[%emt 0:00:28]} 39. Rxf6+ {[%emt 0:00:09]} Kh5 {[%emt 0:00:13]} 40. Rxg2 {[%emt 0:00:15]} Rxg2 {[%emt 0:00:05]} 41. Rxc6 {[%emt 0:00:05]} Ra2 {[%emt 0:00:05]} 42. Rg6 {[%emt 0:00:22]} Ra4+ {[%emt 0:00:25]} 43. Kd5 {[%emt 0:00:11]} Ra5+ {[%emt 0:00:05]} 44. Ke6 {[%emt 0:00:09]} Ra6+ {[%emt 0:00:18]} 45. Kf7 {[%emt 0:00:05]} Ra3 {[%emt 0:00:05]} 46. Rg3 {[%emt 0:00:06]} a5 {[%emt 0:00:05]} 47. f6 {[%emt 0:00:05]} a4 {[%emt 0:00:05]} 48. Kg7 {[%emt 0:00:05]} Kh4 {[%emt 0:00:09]} 49. Rd3 {[%emt 0:00:05]} Ra1 {[%emt 0:00:05]} 50. Rd4+ {[%emt 0:00:48]} Kh5 {[%emt 0:00:10]} 51. Rd5+ {[%emt 0:00:05]} Kh4 {[%emt 0:00:05]} 52. f7 {[%emt 0:00:05]} Rg1+ {[%emt 0:00:05]} 53. Kf6 {[%emt 0:00:05]} Rf1+ {[%emt 0:00:06]} 54. Rf5 {[%emt 0:00:05]} Rxf5+ {[%emt 0:00:05]} 55. Kxf5 {[%emt 0:00:05]} a3 {[%emt 0:00:05]} 56. f8=Q {[%emt 0:00:05]} a2 {[%emt 0:00:05]} 57. Kf4 {[%emt 0:00:06]} a1=Q {[%emt 0:00:05]} 58. Qh8# {[%emt 0:00:05]} 1-0

[Event "NSV Open-ch Rapid 2019"]
[Site "Lueneburg"]
[Date "2019.08.03"]
[Round "2.12"]
[White "Bargsten, Justus"]
[Black "Doederlein, Etienne"]
[Result "1-0"]
[ECO "B01"]
[WhiteElo "1946"]
[BlackElo "1868"]
[Annotator "NA RC"]
[PlyCount "39"]
[EventDate "2019.08.03"]
[EventType "swiss"]
[EventCountry "GER"]
[SourceTitle "playchess.com"]
[Source "ChessBase"]
[SourceQuality "1"]
[TimeControl "600+5"]

1. e4 {[%emt 0:00:00]} d5 {[%emt 0:00:00]} 2. exd5 {[%emt 0:00:00]} Qxd5 {[%emt 0:00:00]} 3. Nc3 {[%emt 0:00:00]} Qd8 {[%emt 0:00:01]} 4. d4 {[%emt 0:00:00]} Nf6 {[%emt 0:00:02]} 5. Bc4 {[%emt 0:00:01]} a6 {[%emt 0:00:05]} 6. Nf3 {[%emt 0:00:04]} b5 {[%emt 0:00:01]} 7. Bb3 {[%emt 0:00:01]} Bb7 {[%emt 0:00:07]} 8. Bg5 {[%emt 0:00:03]} c5 {[%emt 0:00:21]} 9. dxc5 {[%emt 0:00:18]} Qxd1+ {[%emt 0:00:01]} 10. Rxd1 {[%emt 0:00:02]} Nbd7 {[%emt 0:01:08]} 11. Bxf6 {[%emt 0:00:42]} gxf6 {[%emt 0:00:54]} 12. Bxf7+ {[%emt 0:00:09]} Kxf7 {[%emt 0:00:03]} 13. Rxd7 {[%emt 0:00:01]} Bxf3 {[%emt 0:00:03]} 14. gxf3 {[%emt 0:00:02]} Bh6 {[%emt 0:00:08]} 15. Nd5 {[%emt 0:00:04]} Rae8 {[%emt 0:00:12]} 16. c6 {[%emt 0:00:02]} Rhg8 {[%emt 0:00:39]} 17. Kd1 {[%emt 0:01:07]} Rg5 {[%emt 0:00:05]} 18. Re1 {[%emt 0:00:08]} Re5 {[%emt 0:00:32]} 19. Rxe5 {[%emt 0:00:09]} fxe5 {[%emt 0:00:01]} 20. c7 {[%emt 0:00:11]} 1-0

[Event "NSV Open-ch Rapid 2019"]
[Site "Lueneburg"]
[Date "2019.08.03"]
[Round "2.16"]
[White "Egelriede, Nikolas"]
[Black "Mundt, Alexandra"]
[Result "1-0"]
[ECO "C42"]
[WhiteElo "1865"]
[BlackElo "1756"]
[Annotator "NA RC"]
[PlyCount "93"]
[EventDate "2019.08.03"]
[EventType "swiss"]
[EventCountry "GER"]
[SourceTitle "playchess.com"]
[Source "ChessBase"]
[SourceQuality "1"]
[TimeControl "600+5"]

1. e4 {[%emt 0:00:00]} e5 {[%emt 0:00:00]} 2. Nf3 {[%emt 0:00:00]} Nf6 {[%emt 0:00:00]} 3. Nc3 {[%emt 0:00:00]} Bb4 {[%emt 0:00:00]} 4. Nd5 {[%emt 0:00:04]} Nxd5 {[%emt 0:00:01]} 5. exd5 {[%emt 0:00:02]} d6 {[%emt 0:00:01]} 6. Be2 {[%emt 0:00:18]} O-O {[%emt 0:00:02]} 7. O-O {[%emt 0:00:03]} Nd7 {[%emt 0:00:05]} 8. a4 {[%emt 0:00:13]} a5 {[%emt 0:00:13]} 9. c3 {[%emt 0:00:23]} Bc5 {[%emt 0:00:02]} 10. d4 {[%emt 0:00:15]} exd4 {[%emt 0:00:02]} 11. Nxd4 {[%emt 0:00:16]} Re8 {[%emt 0:00:38]} 12. Be3 {[%emt 0:00:17]} Nb6 {[%emt 0:02:52]} 13. Bf3 {[%emt 0:00:26]} Nc4 {[%emt 0:00:16]} 14. Qc1 {[%emt 0:00:57]} Bd7 {[%emt 0:01:28]} 15. Bg5 {[%emt 0:00:58]} Qc8 {[%emt 0:00:27]} 16. b3 {[%emt 0:00:49]} Ne5 {[%emt 0:00:05]} 17. Bd1 {[%emt 0:00:27]} h6 {[%emt 0:00:29]} 18. Bh4 {[%emt 0:00:15]} Ng6 {[%emt 0:01:27]} 19. Bg3 {[%emt 0:00:05]} Bxd4 {[%emt 0:00:14]} 20. cxd4 {[%emt 0:00:05]} b5 {[%emt 0:00:04]} 21. Bc2 {[%emt 0:00:15]} Ne7 {[%emt 0:00:57]} 22. Qd2 {[%emt 0:01:11]} Nxd5 {[%emt 0:00:15]} 23. Qd3 {[%emt 0:00:47]} Nf6 {[%emt 0:00:49]} 24. Bh4 {[%emt 0:01:10]} g5 {[%emt 0:00:01]} 25. Bg3 {[%emt 0:00:03]} bxa4 {[%emt 0:00:58]} 26. bxa4 {[%emt 0:00:17]} Qa6 {[%emt 0:00:01]} 27. Qf3 {[%emt 0:00:16]} Kg7 {[%emt 0:00:02]} 28. h4 {[%emt 0:00:19]} Qc6 {[%emt 0:00:07]} 29. Qd1 {[%emt 0:00:22]} Rab8 {[%emt 0:00:20]} 30. hxg5 {[%emt 0:00:07]} hxg5 {[%emt 0:00:01]} 31. Qd2 {[%emt 0:00:10]} Qd5 {[%emt 0:00:07]} 32. Rab1 {[%emt 0:00:28]} Bc6 {[%emt 0:00:08]} 33. f3 {[%emt 0:00:07]} Rxb1 {[%emt 0:00:04]} 34. Rxb1 {[%emt 0:00:12]} g4 {[%emt 0:00:15]} 35. Bd1 {[%emt 0:00:35]} Qe6 {[%emt 0:00:15]} 36. Qxa5 {[%emt 0:00:15]} Qe3+ {[%emt 0:00:03]} 37. Bf2 {[%emt 0:00:04]} Qd3 {[%emt 0:00:08]} 38. Qg5+ {[%emt 0:00:13]} Kf8 {[%emt 0:00:01]} 39. Rc1 {[%emt 0:00:08]} Nh7 {[%emt 0:00:04]} 40. Qh6+ {[%emt 0:00:04]} Ke7 {[%emt 0:00:02]} 41. Bh4+ {[%emt 0:00:08]} Kd7 {[%emt 0:00:01]} 42. Bc2 {[%emt 0:00:12]} Qe2 {[%emt 0:00:04]} 43. Qxh7 {[%emt 0:00:11]} Bd5 {[%emt 0:00:11]} 44. Bf5+ {[%emt 0:00:03]} Be6 {[%emt 0:00:01]} 45. Bxe6+ {[%emt 0:00:01]} Rxe6 {[%emt 0:00:01]} 46. Qxf7+ {[%emt 0:00:02]} Kc8 {[%emt 0:00:02]} 47. Qxc7# {[%emt 0:00:22]} 1-0